[Event "Titled Tuesday Blitz December 14 2021"]
[White "Andreikin, Dmitry"]
[Black "Martin Carmona, Gaston Manuel"]
[WhiteFideId "4158814"]
[BlackFideId "22284567"]
[WhiteElo "2736"]
[BlackElo "2161"]
[Result "1-0"]
[Round "01"]
[TimeControl "180+1"]
[Date "2021.12.14"]
[WhiteClock "0:01:31"]
[BlackClock "0:00:06"]

1. d4 {[%clk 0:02:59]}  Nf6 {[%clk 0:02:58]} 2. c4 {[%clk 0:02:59]}  e6 {[%clk 0:02:57]} 3. Nf3 {[%clk 0:02:58]}  d5 {[%clk 0:02:57]} 4. g3 {[%clk 0:02:58]}  Be7 {[%clk 0:02:57]} 5. Bg2 {[%clk 0:02:58]}  O-O {[%clk 0:02:57]} 6. O-O {[%clk 0:02:58]}  c6 {[%clk 0:02:57]} 7. Nfd2 {[%clk 0:02:53]}  Nbd7 {[%clk 0:02:55]} 8. Nc3 {[%clk 0:02:52]}  b5 {[%clk 0:02:55]} 9. b3 {[%clk 0:02:51]}  bxc4 {[%clk 0:02:27]} 10. bxc4 {[%clk 0:02:51]}  Rb8 {[%clk 0:02:07]} 11. e4 {[%clk 0:02:49]}  Qa5 {[%clk 0:01:57]} 12. Qc2 {[%clk 0:02:42]}  Ba6 {[%clk 0:01:47]} 13. e5 {[%clk 0:02:41]}  Ne8 {[%clk 0:01:47]} 14. Rd1 {[%clk 0:02:37]}  Nc7 {[%clk 0:01:33]} 15. Nb3 {[%clk 0:02:19]}  Qb4 {[%clk 0:01:32]} 16. Bd2 {[%clk 0:02:05]}  dxc4 {[%clk 0:01:18]} 17. Nc5 {[%clk 0:02:05]}  Nxc5 {[%clk 0:01:13]} 18. dxc5 {[%clk 0:02:05]}  Qxc5 {[%clk 0:01:12]} 19. Be3 {[%clk 0:02:04]}  Qxe5 {[%clk 0:01:09]} 20. Bf4 {[%clk 0:02:03]}  Qa5 {[%clk 0:01:08]} 21. Rd7 {[%clk 0:02:04]}  Bf6 {[%clk 0:00:38]} 22. Bd2 {[%clk 0:01:51]}  Bxc3 {[%clk 0:00:17]} 23. Bxc3 {[%clk 0:01:49]}  Qb6 {[%clk 0:00:18]} 24. Be4 {[%clk 0:01:42]}  Nd5 {[%clk 0:00:17]} 25. Bxh7+ {[%clk 0:01:40]}  Kh8 {[%clk 0:00:18]} 26. Bxg7+ {[%clk 0:01:36]}  Kxg7 {[%clk 0:00:16]} 27. Qg6+ {[%clk 0:01:36]}  Kh8 {[%clk 0:00:17]} 28. Qh6 {[%clk 0:01:37]}  Nf6 {[%clk 0:00:07]} 29. Bf5+ {[%clk 0:01:30]}  Kg8 {[%clk 0:00:07]} 30. Qg5+ {[%clk 0:01:31]}  Kh8 {[%clk 0:00:05]} 31. Qxf6+ {[%clk 0:01:31]}  Kg8 {[%clk 0:00:06]} 32. Qg5+ {[%clk 0:01:31]}  Kh8 {[%clk 0:00:06]} 33. Qh6+ {[%clk 0:01:31]} 1-0


[Site "https://www.chess.com"]

[Event "Titled Tuesday Blitz December 14 2021"]
[White "Bach, Ngoc Thuy Duong"]
[Black "Willow, Jonah B"]
[WhiteFideId "12408956"]
[BlackFideId "438804"]
[WhiteElo "1896"]
[BlackElo "2261"]
[Result "0-1"]
[Round "01"]
[TimeControl "180+1"]
[Date "2021.12.14"]
[WhiteClock "0:00:03"]
[BlackClock "0:00:57"]

1. d4 {[%clk 0:03:00]}  Nf6 {[%clk 0:03:00]} 2. c4 {[%clk 0:02:58]}  e6 {[%clk 0:03:01]} 3. Nc3 {[%clk 0:02:58]}  c5 {[%clk 0:03:01]} 4. d5 {[%clk 0:02:57]}  exd5 {[%clk 0:03:02]} 5. cxd5 {[%clk 0:02:58]}  d6 {[%clk 0:03:03]} 6. e4 {[%clk 0:02:58]}  g6 {[%clk 0:03:03]} 7. f4 {[%clk 0:02:59]}  Bg7 {[%clk 0:03:03]} 8. Bb5+ {[%clk 0:02:59]}  Nfd7 {[%clk 0:03:04]} 9. a4 {[%clk 0:03:00]}  O-O {[%clk 0:03:03]} 10. Nf3 {[%clk 0:03:00]}  Na6 {[%clk 0:03:03]} 11. O-O {[%clk 0:02:59]}  Nb4 {[%clk 0:03:02]} 12. Re1 {[%clk 0:03:00]}  a6 {[%clk 0:02:56]} 13. Bf1 {[%clk 0:02:58]}  Re8 {[%clk 0:02:55]} 14. h3 {[%clk 0:02:42]}  f5 {[%clk 0:02:55]} 15. e5 {[%clk 0:02:32]}  dxe5 {[%clk 0:02:53]} 16. d6 {[%clk 0:02:26]}  e4 {[%clk 0:02:35]} 17. Bc4+ {[%clk 0:02:24]}  Kh8 {[%clk 0:02:33]} 18. Ng5 {[%clk 0:02:23]}  Bd4+ {[%clk 0:02:29]} 19. Be3 {[%clk 0:02:19]}  Bxe3+ {[%clk 0:02:22]} 20. Rxe3 {[%clk 0:02:17]}  Qf6 {[%clk 0:02:23]} 21. Nd5 {[%clk 0:01:29]}  Nxd5 {[%clk 0:02:21]} 22. Qxd5 {[%clk 0:01:28]}  h6 {[%clk 0:02:21]} 23. Nf7+ {[%clk 0:00:57]}  Kh7 {[%clk 0:01:58]} 24. Ne5 {[%clk 0:00:56]}  g5 {[%clk 0:01:12]} 25. Nxd7 {[%clk 0:00:24]}  Bxd7 {[%clk 0:01:13]} 26. Qxb7 {[%clk 0:00:18]}  Qxd6 {[%clk 0:01:10]} 27. fxg5 {[%clk 0:00:18]}  hxg5 {[%clk 0:01:10]} 28. Ree1 {[%clk 0:00:17]}  Rab8 {[%clk 0:01:07]} 29. Qa7 {[%clk 0:00:15]}  Rxb2 {[%clk 0:01:06]} 30. Rad1 {[%clk 0:00:14]}  Rd2 {[%clk 0:01:06]} 31. Rxd2 {[%clk 0:00:12]}  Qxd2 {[%clk 0:01:07]} 32. Re2 {[%clk 0:00:09]}  Qd4+ {[%clk 0:01:05]} 33. Kh1 {[%clk 0:00:09]}  Re7 {[%clk 0:01:02]} 34. Qxa6 {[%clk 0:00:09]}  f4 {[%clk 0:01:02]} 35. Re1 {[%clk 0:00:03]}  Bf5 {[%clk 0:00:57]} 0-1


[Site "https://www.chess.com"]

[Event "Titled Tuesday Blitz December 14 2021"]
[White "Baches Garcia, Guillermo"]
[Black "Makhnev, Denis"]
[WhiteFideId "2209764"]
[BlackFideId "13707647"]
[WhiteElo "2474"]
[BlackElo "2491"]
[Result "0-1"]
[Round "01"]
[TimeControl "180+1"]
[Date "2021.12.14"]
[WhiteClock "0:00:12"]
[BlackClock "0:00:44"]

1. e4 {[%clk 0:03:00]}  e5 {[%clk 0:02:59]} 2. Nf3 {[%clk 0:03:00]}  Nc6 {[%clk 0:03:00]} 3. Nc3 {[%clk 0:03:01]}  Nf6 {[%clk 0:02:59]} 4. d4 {[%clk 0:03:01]}  exd4 {[%clk 0:02:59]} 5. Nxd4 {[%clk 0:03:02]}  Bb4 {[%clk 0:02:55]} 6. Nxc6 {[%clk 0:03:02]}  bxc6 {[%clk 0:02:55]} 7. Bd3 {[%clk 0:03:03]}  d5 {[%clk 0:02:56]} 8. Bd2 {[%clk 0:03:03]}  O-O {[%clk 0:02:53]} 9. O-O {[%clk 0:03:03]}  Re8 {[%clk 0:02:50]} 10. Nxd5 {[%clk 0:03:02]}  cxd5 {[%clk 0:02:46]} 11. Bxb4 {[%clk 0:03:00]}  a5 {[%clk 0:02:12]} 12. Bc5 {[%clk 0:02:43]}  Nxe4 {[%clk 0:02:11]} 13. Bxe4 {[%clk 0:02:36]}  Rxe4 {[%clk 0:02:10]} 14. Re1 {[%clk 0:02:34]}  Bf5 {[%clk 0:02:05]} 15. Rxe4 {[%clk 0:02:29]}  Bxe4 {[%clk 0:02:05]} 16. f3 {[%clk 0:02:23]}  Bg6 {[%clk 0:02:05]} 17. c3 {[%clk 0:02:20]}  a4 {[%clk 0:02:04]} 18. Qd4 {[%clk 0:02:19]}  c6 {[%clk 0:02:02]} 19. Re1 {[%clk 0:02:19]}  h6 {[%clk 0:01:51]} 20. b4 {[%clk 0:02:14]}  a3 {[%clk 0:01:47]} 21. Qe5 {[%clk 0:02:09]}  Qh4 {[%clk 0:01:42]} 22. Bd4 {[%clk 0:01:58]}  f6 {[%clk 0:01:40]} 23. Qg3 {[%clk 0:01:54]}  Qxg3 {[%clk 0:01:39]} 24. hxg3 {[%clk 0:01:54]}  Bd3 {[%clk 0:01:39]} 25. Rd1 {[%clk 0:01:42]}  Bc4 {[%clk 0:01:39]} 26. Rd2 {[%clk 0:01:42]}  h5 {[%clk 0:01:40]} 27. Kf2 {[%clk 0:01:42]}  Kf7 {[%clk 0:01:33]} 28. Bc5 {[%clk 0:01:39]}  Ke6 {[%clk 0:01:25]} 29. Ke3 {[%clk 0:01:38]}  Bb5 {[%clk 0:01:16]} 30. Kf2 {[%clk 0:01:35]}  Kf5 {[%clk 0:01:14]} 31. Be3 {[%clk 0:01:33]}  Rh8 {[%clk 0:01:10]} 32. Bc5 {[%clk 0:01:30]}  h4 {[%clk 0:01:09]} 33. gxh4 {[%clk 0:01:17]}  Rxh4 {[%clk 0:01:10]} 34. Rd1 {[%clk 0:01:17]}  Rh8 {[%clk 0:01:06]} 35. Rb1 {[%clk 0:01:11]}  Ra8 {[%clk 0:00:57]} 36. Rd1 {[%clk 0:01:02]}  Bc4 {[%clk 0:00:57]} 37. Rd2 {[%clk 0:01:02]}  Ke6 {[%clk 0:00:58]} 38. Bd4 {[%clk 0:01:02]}  Kd7 {[%clk 0:00:58]} 39. Bc5 {[%clk 0:00:59]}  Kc7 {[%clk 0:00:58]} 40. g4 {[%clk 0:00:48]}  Kb7 {[%clk 0:00:58]} 41. Kg2 {[%clk 0:00:46]}  Ka6 {[%clk 0:00:57]} 42. f4 {[%clk 0:00:47]}  Kb5 {[%clk 0:00:54]} 43. g5 {[%clk 0:00:47]}  fxg5 {[%clk 0:00:50]} 44. fxg5 {[%clk 0:00:48]}  g6 {[%clk 0:00:51]} 45. Bd4 {[%clk 0:00:46]}  Re8 {[%clk 0:00:51]} 46. Kf2 {[%clk 0:00:45]}  Re4 {[%clk 0:00:50]} 47. Bf6 {[%clk 0:00:42]}  Rh4 {[%clk 0:00:47]} 48. Kg2 {[%clk 0:00:42]}  Rf4 {[%clk 0:00:45]} 49. Be5 {[%clk 0:00:37]}  Rf1 {[%clk 0:00:44]} 50. Bf4 {[%clk 0:00:12]}  Rxf4 {[%clk 0:00:44]} 0-1


[Site "https://www.chess.com"]

[Event "Titled Tuesday Blitz December 14 2021"]
[White "Blohberger, Felix"]
[Black "Ansh M Shah"]
[WhiteFideId "1632051"]
[BlackFideId "25033379"]
[WhiteElo "2416"]
[BlackElo "1819"]
[Result "1-0"]
[Round "01"]
[TimeControl "180+1"]
[Date "2021.12.15"]
[WhiteClock "0:00:10"]
[BlackClock "0:00:22"]

1. d4 {[%clk 0:02:51]}  Nf6 {[%clk 0:02:59]} 2. Nf3 {[%clk 0:02:51]}  g6 {[%clk 0:02:59]} 3. b3 {[%clk 0:02:51]}  Bg7 {[%clk 0:03:00]} 4. Bb2 {[%clk 0:02:51]}  O-O {[%clk 0:03:01]} 5. e3 {[%clk 0:02:52]}  d5 {[%clk 0:03:02]} 6. Be2 {[%clk 0:02:51]}  b6 {[%clk 0:03:03]} 7. O-O {[%clk 0:02:52]}  Bb7 {[%clk 0:03:04]} 8. c4 {[%clk 0:02:52]}  Nbd7 {[%clk 0:03:05]} 9. Nc3 {[%clk 0:02:51]}  c5 {[%clk 0:03:04]} 10. Rc1 {[%clk 0:02:48]}  Ne4 {[%clk 0:03:04]} 11. Nxd5 {[%clk 0:02:42]}  Bxd5 {[%clk 0:03:03]} 12. cxd5 {[%clk 0:02:42]}  Rc8 {[%clk 0:02:44]} 13. Ne5 {[%clk 0:02:07]}  cxd4 {[%clk 0:01:46]} 14. Nc6 {[%clk 0:01:52]}  Qe8 {[%clk 0:01:29]} 15. Bxd4 {[%clk 0:01:49]}  Ndf6 {[%clk 0:01:21]} 16. f3 {[%clk 0:01:36]}  Nd6 {[%clk 0:01:17]} 17. e4 {[%clk 0:01:33]}  e5 {[%clk 0:01:14]} 18. Be3 {[%clk 0:01:01]}  Rc7 {[%clk 0:00:59]} 19. Qd2 {[%clk 0:00:58]}  Nd7 {[%clk 0:00:54]} 20. Nb4 {[%clk 0:00:48]}  Rxc1 {[%clk 0:00:47]} 21. Rxc1 {[%clk 0:00:47]}  f5 {[%clk 0:00:47]} 22. Bd3 {[%clk 0:00:46]}  fxe4 {[%clk 0:00:46]} 23. fxe4 {[%clk 0:00:44]}  Qf7 {[%clk 0:00:42]} 24. Rf1 {[%clk 0:00:38]}  Nf6 {[%clk 0:00:39]} 25. Qe2 {[%clk 0:00:32]}  Qd7 {[%clk 0:00:34]} 26. Bd2 {[%clk 0:00:32]}  a5 {[%clk 0:00:32]} 27. Nc6 {[%clk 0:00:30]}  Qg4 {[%clk 0:00:28]} 28. Qxg4 {[%clk 0:00:29]}  Nxg4 {[%clk 0:00:29]} 29. Rxf8+ {[%clk 0:00:22]}  Kxf8 {[%clk 0:00:30]} 30. h3 {[%clk 0:00:08]}  Nf6 {[%clk 0:00:30]} 31. Be3 {[%clk 0:00:05]}  b5 {[%clk 0:00:23]} 32. Bc5 {[%clk 0:00:05]}  Ne8 {[%clk 0:00:22]} 33. Bxb5 {[%clk 0:00:04]}  Kf7 {[%clk 0:00:21]} 34. Bd3 {[%clk 0:00:04]}  Nb7 {[%clk 0:00:19]} 35. Bb6 {[%clk 0:00:03]}  Ned6 {[%clk 0:00:19]} 36. Nd8+ {[%clk 0:00:03]}  Ke8 {[%clk 0:00:19]} 37. Nxb7 {[%clk 0:00:03]}  Nxb7 {[%clk 0:00:19]} 38. Kf2 {[%clk 0:00:03]}  Kd7 {[%clk 0:00:19]} 39. Ke2 {[%clk 0:00:04]}  Bf8 {[%clk 0:00:19]} 40. Ba6 {[%clk 0:00:02]}  Bc5 {[%clk 0:00:19]} 41. Bxb7 {[%clk 0:00:01]}  Bxb6 {[%clk 0:00:19]} 42. Bc6+ {[%clk 0:00:02]}  Kd6 {[%clk 0:00:19]} 43. Kd3 {[%clk 0:00:03]}  Kc5 {[%clk 0:00:19]} 44. Be8 {[%clk 0:00:02]}  Bc7 {[%clk 0:00:19]} 45. Bf7 {[%clk 0:00:03]}  Bd6 {[%clk 0:00:19]} 46. h4 {[%clk 0:00:03]}  Be7 {[%clk 0:00:18]} 47. g3 {[%clk 0:00:04]}  g5 {[%clk 0:00:18]} 48. h5 {[%clk 0:00:04]}  h6 {[%clk 0:00:18]} 49. Kc2 {[%clk 0:00:03]}  Bd6 {[%clk 0:00:18]} 50. Kd3 {[%clk 0:00:03]}  Kb4 {[%clk 0:00:18]} 51. Be6 {[%clk 0:00:04]}  Kc5 {[%clk 0:00:18]} 52. Bf5 {[%clk 0:00:04]}  Kb4 {[%clk 0:00:18]} 53. Bh3 {[%clk 0:00:04]}  Bc5 {[%clk 0:00:17]} 54. Bd7 {[%clk 0:00:05]}  Bd6 {[%clk 0:00:15]} 55. Ke2 {[%clk 0:00:05]}  Kc3 {[%clk 0:00:15]} 56. Kf3 {[%clk 0:00:05]}  Kd4 {[%clk 0:00:15]} 57. Bf5 {[%clk 0:00:05]}  Kd3 {[%clk 0:00:15]} 58. Kg4 {[%clk 0:00:05]}  Kd4 {[%clk 0:00:15]} 59. Bh7 {[%clk 0:00:05]}  Ke3 {[%clk 0:00:13]} 60. Kf5 {[%clk 0:00:06]}  Kf3 {[%clk 0:00:14]} 61. g4 {[%clk 0:00:06]}  Bb8 {[%clk 0:00:12]} 62. Bg6 {[%clk 0:00:06]}  Kg3 {[%clk 0:00:11]} 63. a3 {[%clk 0:00:06]}  Bd6 {[%clk 0:00:10]} 64. Ke6 {[%clk 0:00:06]}  Bxa3 {[%clk 0:00:11]} 65. Bf5 {[%clk 0:00:07]}  Kf4 {[%clk 0:00:10]} 66. d6 {[%clk 0:00:07]}  Bxd6 {[%clk 0:00:10]} 67. Kxd6 {[%clk 0:00:08]}  Ke3 {[%clk 0:00:10]} 68. Kc5 {[%clk 0:00:09]}  a4 {[%clk 0:00:10]} 69. bxa4 {[%clk 0:00:09]}  Kf3 {[%clk 0:00:10]} 70. a5 {[%clk 0:00:09]}  Kg3 {[%clk 0:00:11]} 71. a6 {[%clk 0:00:09]}  Kh4 {[%clk 0:00:12]} 72. a7 {[%clk 0:00:10]}  Kg3 {[%clk 0:00:13]} 73. a8=Q {[%clk 0:00:10]}  Kf4 {[%clk 0:00:14]} 74. Qa4 {[%clk 0:00:10]}  Kg3 {[%clk 0:00:15]} 75. Qb3+ {[%clk 0:00:11]}  Kh4 {[%clk 0:00:16]} 76. Qe6 {[%clk 0:00:10]}  Kg3 {[%clk 0:00:16]} 77. Qxh6 {[%clk 0:00:11]}  Kh4 {[%clk 0:00:17]} 78. Qg6 {[%clk 0:00:11]}  Kg3 {[%clk 0:00:17]} 79. Qxg5 {[%clk 0:00:11]}  Kf3 {[%clk 0:00:18]} 80. h6 {[%clk 0:00:11]}  Kg3 {[%clk 0:00:17]} 81. h7 {[%clk 0:00:12]}  Kg2 {[%clk 0:00:18]} 82. Qg7 {[%clk 0:00:12]}  Kg1 {[%clk 0:00:19]} 83. h8=Q {[%clk 0:00:12]}  Kf1 {[%clk 0:00:20]} 84. Qh2 {[%clk 0:00:12]}  Ke1 {[%clk 0:00:20]} 85. g5 {[%clk 0:00:12]}  Kd1 {[%clk 0:00:21]} 86. Qgh8 {[%clk 0:00:12]}  Kc1 {[%clk 0:00:22]} 87. g6 {[%clk 0:00:12]}  Kb1 {[%clk 0:00:20]} 88. g7 {[%clk 0:00:12]}  Ka1 {[%clk 0:00:21]} 89. g8=Q {[%clk 0:00:13]}  Kb1 {[%clk 0:00:22]} 90. Qgg1# {[%clk 0:00:10]} 1-0


[Site "https://www.chess.com"]

[Event "Titled Tuesday Blitz December 14 2021"]
[White "Bressy, Theo"]
[Black "Holt, Conrad"]
[WhiteFideId "26022842"]
[BlackFideId "2034387"]
[WhiteElo "2163"]
[BlackElo "2586"]
[Result "0-1"]
[Round "01"]
[TimeControl "180+1"]
[Date "2021.12.15"]
[WhiteClock "0:00:17"]
[BlackClock "0:00:16"]

1. e4 {[%clk 0:03:00]}  e6 {[%clk 0:02:05]} 2. d4 {[%clk 0:02:54]}  d5 {[%clk 0:02:05]} 3. Nc3 {[%clk 0:02:54]}  Nf6 {[%clk 0:02:05]} 4. e5 {[%clk 0:02:55]}  Nfd7 {[%clk 0:02:05]} 5. f4 {[%clk 0:02:55]}  c5 {[%clk 0:02:05]} 6. Nf3 {[%clk 0:02:55]}  Nc6 {[%clk 0:02:06]} 7. Be3 {[%clk 0:02:56]}  cxd4 {[%clk 0:02:07]} 8. Nxd4 {[%clk 0:02:56]}  Bc5 {[%clk 0:02:07]} 9. Qd2 {[%clk 0:02:56]}  O-O {[%clk 0:02:08]} 10. O-O-O {[%clk 0:02:54]}  a6 {[%clk 0:02:08]} 11. h4 {[%clk 0:02:51]}  Nxd4 {[%clk 0:02:08]} 12. Bxd4 {[%clk 0:02:52]}  b5 {[%clk 0:02:08]} 13. h5 {[%clk 0:02:50]}  b4 {[%clk 0:02:09]} 14. Na4 {[%clk 0:02:48]}  Bxd4 {[%clk 0:02:09]} 15. Qxd4 {[%clk 0:02:49]}  Qa5 {[%clk 0:02:09]} 16. b3 {[%clk 0:02:46]}  Bb7 {[%clk 0:02:09]} 17. Kb1 {[%clk 0:02:44]}  Rfc8 {[%clk 0:02:07]} 18. Rh3 {[%clk 0:02:40]}  Bc6 {[%clk 0:02:05]} 19. Nb2 {[%clk 0:02:40]}  Bb5 {[%clk 0:02:03]} 20. f5 {[%clk 0:02:15]}  Qc7 {[%clk 0:02:00]} 21. Qd2 {[%clk 0:01:35]}  exf5 {[%clk 0:01:38]} 22. Nd3 {[%clk 0:01:26]}  Bxd3 {[%clk 0:01:26]} 23. Bxd3 {[%clk 0:01:26]}  Qxe5 {[%clk 0:01:20]} 24. Qxb4 {[%clk 0:01:25]}  Nc5 {[%clk 0:01:20]} 25. Re1 {[%clk 0:01:17]}  Ne4 {[%clk 0:01:15]} 26. Bxe4 {[%clk 0:01:14]}  dxe4 {[%clk 0:01:11]} 27. Rd1 {[%clk 0:01:12]}  Rd8 {[%clk 0:01:09]} 28. Rhh1 {[%clk 0:01:11]}  e3 {[%clk 0:01:08]} 29. Qc4 {[%clk 0:01:07]}  Rxd1+ {[%clk 0:01:04]} 30. Rxd1 {[%clk 0:01:06]}  e2 {[%clk 0:01:05]} 31. Re1 {[%clk 0:01:06]}  Re8 {[%clk 0:01:02]} 32. Qxa6 {[%clk 0:01:06]}  Qd5 {[%clk 0:00:47]} 33. Kc1 {[%clk 0:00:46]}  Qd4 {[%clk 0:00:44]} 34. Qd3 {[%clk 0:00:40]}  Qf4+ {[%clk 0:00:39]} 35. Qd2 {[%clk 0:00:37]}  Qe5 {[%clk 0:00:38]} 36. Qd3 {[%clk 0:00:33]}  h6 {[%clk 0:00:26]} 37. a4 {[%clk 0:00:26]}  Qf4+ {[%clk 0:00:21]} 38. Qd2 {[%clk 0:00:26]}  Qf2 {[%clk 0:00:20]} 39. g3 {[%clk 0:00:23]}  Re4 {[%clk 0:00:16]} 40. c3 {[%clk 0:00:18]}  Re6 {[%clk 0:00:16]} 41. Qf4 {[%clk 0:00:17]}  Qxe1+ {[%clk 0:00:15]} 42. Kc2 {[%clk 0:00:17]}  Qd1+ {[%clk 0:00:16]} 0-1


[Site "https://www.chess.com"]

[Event "Titled Tuesday Blitz December 14 2021"]
[White "Demin, Vladimir"]
[Black "Kamsky, Gata"]
[WhiteFideId "4167457"]
[BlackFideId "2000024"]
[WhiteElo "2462"]
[BlackElo "2645"]
[Result "0-1"]
[Round "01"]
[TimeControl "180+1"]
[Date "2021.12.14"]
[WhiteClock "0:00:02"]
[BlackClock "0:00:10"]

1. e4 {[%clk 0:03:00]}  g6 {[%clk 0:02:54]} 2. d4 {[%clk 0:03:00]}  Bg7 {[%clk 0:02:55]} 3. Nc3 {[%clk 0:03:00]}  d6 {[%clk 0:02:55]} 4. h4 {[%clk 0:03:01]}  h6 {[%clk 0:02:54]} 5. Be3 {[%clk 0:03:00]}  a6 {[%clk 0:02:52]} 6. a4 {[%clk 0:02:59]}  b6 {[%clk 0:02:50]} 7. Qd2 {[%clk 0:02:58]}  Nf6 {[%clk 0:02:44]} 8. f3 {[%clk 0:02:58]}  e6 {[%clk 0:02:43]} 9. g4 {[%clk 0:02:50]}  Bb7 {[%clk 0:02:41]} 10. Nge2 {[%clk 0:02:40]}  Nc6 {[%clk 0:02:36]} 11. Nf4 {[%clk 0:02:33]}  e5 {[%clk 0:02:27]} 12. Nfe2 {[%clk 0:02:22]}  exd4 {[%clk 0:02:23]} 13. Nxd4 {[%clk 0:02:20]}  Ne5 {[%clk 0:02:21]} 14. Be2 {[%clk 0:02:18]}  Qe7 {[%clk 0:02:06]} 15. O-O-O {[%clk 0:02:12]}  c5 {[%clk 0:01:56]} 16. Nb3 {[%clk 0:02:06]}  Rd8 {[%clk 0:01:49]} 17. g5 {[%clk 0:01:59]}  hxg5 {[%clk 0:01:28]} 18. Bxg5 {[%clk 0:01:39]}  Qe6 {[%clk 0:01:21]} 19. f4 {[%clk 0:01:24]}  Nc6 {[%clk 0:01:03]} 20. Nd5 {[%clk 0:01:12]}  O-O {[%clk 0:00:47]} 21. Bf3 {[%clk 0:00:54]}  Nd4 {[%clk 0:00:34]} 22. Nxd4 {[%clk 0:00:52]}  cxd4 {[%clk 0:00:34]} 23. Nxf6+ {[%clk 0:00:41]}  Bxf6 {[%clk 0:00:34]} 24. Bxf6 {[%clk 0:00:41]}  Qxf6 {[%clk 0:00:34]} 25. h5 {[%clk 0:00:36]}  Rd7 {[%clk 0:00:24]} 26. Kb1 {[%clk 0:00:29]}  Re8 {[%clk 0:00:23]} 27. Qxd4 {[%clk 0:00:25]}  Qxd4 {[%clk 0:00:22]} 28. Rxd4 {[%clk 0:00:26]}  Bc6 {[%clk 0:00:18]} 29. hxg6 {[%clk 0:00:19]}  fxg6 {[%clk 0:00:18]} 30. Rhd1 {[%clk 0:00:19]}  Red8 {[%clk 0:00:18]} 31. Bg4 {[%clk 0:00:18]}  Re7 {[%clk 0:00:17]} 32. e5 {[%clk 0:00:18]}  d5 {[%clk 0:00:17]} 33. c4 {[%clk 0:00:18]}  Bxa4 {[%clk 0:00:16]} 34. R1d2 {[%clk 0:00:16]}  Bb3 {[%clk 0:00:15]} 35. cxd5 {[%clk 0:00:15]}  Rh7 {[%clk 0:00:16]} 36. Be6+ {[%clk 0:00:07]}  Kg7 {[%clk 0:00:15]} 37. Rc2 {[%clk 0:00:03]}  Rh1+ {[%clk 0:00:14]} 38. Rc1 {[%clk 0:00:03]}  Ba2+ {[%clk 0:00:14]} 39. Kxa2 {[%clk 0:00:04]}  Rxc1 {[%clk 0:00:13]} 40. d6 {[%clk 0:00:04]}  Rc5 {[%clk 0:00:13]} 41. d7 {[%clk 0:00:04]}  g5 {[%clk 0:00:12]} 42. fxg5 {[%clk 0:00:03]}  Rxe5 {[%clk 0:00:13]} 43. Bb3 {[%clk 0:00:02]}  Rxg5 {[%clk 0:00:13]} 44. Rd6 {[%clk 0:00:03]}  Rb5 {[%clk 0:00:12]} 45. Bc4 {[%clk 0:00:02]}  Rb4 {[%clk 0:00:11]} 46. b3 {[%clk 0:00:02]}  a5 {[%clk 0:00:11]} 47. Ka3 {[%clk 0:00:02]}  Kf8 {[%clk 0:00:11]} 48. Rf6+ {[%clk 0:00:02]}  Ke7 {[%clk 0:00:11]} 49. Rh6 {[%clk 0:00:02]}  Rxd7 {[%clk 0:00:11]} 50. Rh5 {[%clk 0:00:02]}  Rd6 {[%clk 0:00:11]} 51. Bb5 {[%clk 0:00:02]}  Rf6 {[%clk 0:00:11]} 52. Rh7+ {[%clk 0:00:02]}  Kd6 {[%clk 0:00:11]} 53. Bc4 {[%clk 0:00:02]}  Kc5 {[%clk 0:00:12]} 54. Rh5+ {[%clk 0:00:01]}  Kd6 {[%clk 0:00:11]} 55. Rg5 {[%clk 0:00:02]}  Rf3 {[%clk 0:00:11]} 56. Rd5+ {[%clk 0:00:03]}  Kc6 {[%clk 0:00:11]} 57. Rd4 {[%clk 0:00:03]}  Rc3 {[%clk 0:00:11]} 58. Rh4 {[%clk 0:00:04]}  b5 {[%clk 0:00:11]} 59. Bf7 {[%clk 0:00:02]}  Rxh4 {[%clk 0:00:10]} 0-1


[Site "https://www.chess.com"]

[Event "Titled Tuesday Blitz December 14 2021"]
[White "Djordjevic, Vuk"]
[Black "Dobre, Claudiu-Cristian"]
[WhiteFideId "902098"]
[BlackFideId "1211854"]
[WhiteElo "2463"]
[BlackElo "2259"]
[Result "1-0"]
[Round "01"]
[TimeControl "180+1"]
[Date "2021.12.15"]
[WhiteClock "0:00:20"]
[BlackClock "0:00:04"]

1. d4 {[%clk 0:03:00]}  d5 {[%clk 0:02:58]} 2. Bf4 {[%clk 0:03:00]}  c6 {[%clk 0:02:52]} 3. e3 {[%clk 0:03:00]}  Qb6 {[%clk 0:02:53]} 4. Qc1 {[%clk 0:02:54]}  Bf5 {[%clk 0:02:53]} 5. c4 {[%clk 0:02:52]}  e6 {[%clk 0:02:53]} 6. Nc3 {[%clk 0:02:50]}  Nf6 {[%clk 0:02:49]} 7. h3 {[%clk 0:02:42]}  Nbd7 {[%clk 0:02:46]} 8. Nf3 {[%clk 0:02:41]}  h6 {[%clk 0:02:44]} 9. c5 {[%clk 0:01:52]}  Qd8 {[%clk 0:02:42]} 10. Be2 {[%clk 0:01:34]}  Be7 {[%clk 0:02:40]} 11. O-O {[%clk 0:01:32]}  b5 {[%clk 0:02:16]} 12. b4 {[%clk 0:01:25]}  a5 {[%clk 0:02:07]} 13. a4 {[%clk 0:01:25]}  axb4 {[%clk 0:02:06]} 14. axb5 {[%clk 0:01:25]}  Rxa1 {[%clk 0:01:58]} 15. Qxa1 {[%clk 0:01:24]}  bxc3 {[%clk 0:01:58]} 16. bxc6 {[%clk 0:01:24]}  Nxc5 {[%clk 0:01:50]} 17. c7 {[%clk 0:01:20]}  Qc8 {[%clk 0:01:43]} 18. Bb5+ {[%clk 0:01:15]}  Nfd7 {[%clk 0:01:01]} 19. dxc5 {[%clk 0:00:58]}  O-O {[%clk 0:01:00]} 20. Bd6 {[%clk 0:00:42]}  Bxd6 {[%clk 0:00:33]} 21. cxd6 {[%clk 0:00:43]}  c2 {[%clk 0:00:31]} 22. Nd4 {[%clk 0:00:31]}  Bg6 {[%clk 0:00:28]} 23. Nc6 {[%clk 0:00:29]}  Qa8 {[%clk 0:00:19]} 24. Ne7+ {[%clk 0:00:26]}  Kh7 {[%clk 0:00:18]} 25. Qxa8 {[%clk 0:00:20]}  Rxa8 {[%clk 0:00:18]} 26. Bxd7 {[%clk 0:00:21]}  Bd3 {[%clk 0:00:16]} 27. Rc1 {[%clk 0:00:21]}  Ra6 {[%clk 0:00:04]} 28. c8=Q {[%clk 0:00:20]} 1-0


[Site "https://www.chess.com"]